bitfinex/quotes_BTCUSD_20250110
["timestamp","ask_amount","ask_price","bid_price","bid_amount"]
[1736522923049,0.00048753,93104.0,93103.0,0.11556147]
[1736522923160,0.00048753,93104.0,93103.0,0.01126171]
[1736522923621,0.00048753,93104.0,93103.0,0.00926171]
[1736522923896,0.00048753,93104.0,93103.0,0.11656147]
[1736522924117,0.00048753,93104.0,93103.0,0.33137647]
[1736522924322,0.00148753,93104.0,93103.0,0.33737647]
[1736522924760,0.00148753,93104.0,93103.0,0.33437647]
[1736522925179,0.00048753,93104.0,93103.0,0.01226171]
[1736522925586,0.00148753,93104.0,93103.0,0.02026171]
[1736522925786,0.00148753,93104.0,93103.0,0.01226171]
[1736522925787,0.00048753,93104.0,93103.0,0.01226171]
[1736522926143,0.00148753,93104.0,93103.0,0.02026171]
[1736522926913,0.00148753,93104.0,93103.0,0.01726171]
[1736522927033,0.00148753,93104.0,93103.0,0.02226171]
[1736522927478,0.00048753,93104.0,93103.0,0.01426171]
[1736522927731,0.00048753,93104.0,93103.0,0.00926171]
[1736522927903,0.00048753,93104.0,93103.0,0.01126171]
[1736522928173,0.00048753,93104.0,93103.0,0.11356147]
[1736522928578,0.00048753,93104.0,93103.0,0.26663528]
[1736522928780,0.00048753,93104.0,93103.0,0.44436147]
[1736522929121,0.09358593,93155.0,93142.0,0.214725]
[1736522929328,0.0010701,93154.0,93137.0,0.214736]
[1736522929531,0.214713,93148.0,93138.0,0.10429976]
[1736522929737,0.00014627,93155.0,93138.0,0.10429976]
[1736522930047,0.00014627,93155.0,93119.0,0.1]
[1736522930048,0.00014627,93155.0,93152.0,0.2147]
[1736522930275,0.00014627,93155.0,93154.0,0.10429976]
[1736522930700,0.00014627,93155.0,93154.0,0.10537295]
[1736522931508,0.18717186,93194.0,93154.0,0.10537295]
[1736522931509,0.214576,93207.0,93186.0,0.214624]
[1736522931725,0.214598,93198.0,93186.0,0.10429976]
[1736522931863,0.0003172,93187.0,93186.0,0.10429976]
[1736522932066,0.0003172,93187.0,93186.0,0.10537277]
[1736522932273,0.0003172,93187.0,93186.0,0.10537264]
[1736522932497,0.0003172,93187.0,93186.0,0.10429976]
[1736522932698,0.0003172,93187.0,93186.0,0.10537259]
[1736522932907,0.0003172,93187.0,93186.0,0.10429976]
[1736522933109,0.0003172,93187.0,93186.0,0.10537268]
[1736522933688,0.0003172,93187.0,93186.0,0.10429976]
[1736522934313,0.0003172,93187.0,93186.0,0.10537278]
[1736522934725,0.0003172,93187.0,93186.0,0.10429976]
[1736522934919,0.0003172,93187.0,93186.0,0.10829976]
[1736522935371,0.0003172,93187.0,93186.0,0.10429976]
[1736522935782,0.0013172,93187.0,93186.0,0.11729976]
[1736522936340,0.0012772,93187.0,93186.0,0.013]
[1736522936724,0.0012772,93187.0,93186.0,0.11729976]
[1736522937330,0.023,93216.0,93194.0,0.05595859]
[1736522937589,0.214594,93199.0,93195.0,0.10429976]
[1736522937958,0.214594,93199.0,92962.0,60.0372496]
[1736522937959,0.214612,93192.0,93189.0,0.05595859]
[1736522938211,0.214596,93199.0,93193.0,0.05595859]
[1736522938334,0.214596,93199.0,93194.0,0.10429976]
[1736522939372,0.214616,93190.0,93186.0,0.001]
[1736522939569,0.0010701,93189.0,93186.0,0.001]
[1736522939771,0.00048856,93204.0,93186.0,0.001]
[1736522939772,0.214622,93187.0,93186.0,0.001]
[1736522940150,0.214622,93187.0,93166.0,0.214668]
[1736522940151,0.214624,93186.0,93180.0,0.05595859]
[1736522940353,0.214636,93181.0,93180.0,0.05595859]
[1736522940566,0.214636,93181.0,93180.0,0.16025835]
[1736522940772,0.214629,93184.0,93180.0,0.16025835]
[1736522940885,0.214629,93184.0,93181.0,0.10429976]
[1736522941094,0.15,93192.0,93174.0,0.05595859]
[1736522941293,0.214639,93180.0,93175.0,0.10429976]
[1736522941672,0.214657,93172.0,93166.0,0.05595859]
[1736522941872,0.214657,93172.0,93154.0,0.340596]
[1736522941873,0.023,93185.0,93154.0,0.05595859]
[1736522942075,0.15,93169.0,93151.0,0.05595859]
[1736522942282,0.1,93179.0,93126.0,0.0821]
[1736522942283,0.023,93166.0,93141.0,0.05595859]
[1736522942485,0.214719,93145.0,93142.0,0.10429976]
[1736522943094,0.429438,93145.0,93142.0,0.10444636]
[1736522943438,0.214713,93148.0,93142.0,0.10444636]
[1736522943863,0.02106174,93160.0,93142.0,0.10444636]
[1736522944041,0.214723,93144.0,93142.0,0.0001466]
[1736522944261,0.0010701,93159.0,93142.0,0.0001466]
[1736522944262,0.214688,93159.0,93150.0,0.05595859]
[1736522944460,0.003,93166.0,93151.0,0.16025835]
[1736522944659,0.003,93166.0,93165.0,0.05595859]
[1736522944862,0.003,93166.0,93165.0,0.31025835]
[1736522945064,0.0001706,93187.0,93186.0,0.05595859]
[1736522945295,0.0001706,93187.0,93186.0,0.16025835]
[1736522945882,0.0001706,93187.0,93186.0,0.16133135]
[1736522946440,0.214522,93231.0,93219.0,0.214547]
[1736522946644,0.0219583,93241.0,93226.0,0.05595859]
[1736522946885,0.00065946,93232.0,93227.0,0.10429976]
[1736522947096,0.00065946,93232.0,93231.0,0.41025835]
[1736522947323,0.00065946,93232.0,93231.0,0.45805835]
[1736522947537,4.6e-07,93232.0,93231.0,0.55805835]
[1736522947748,0.0001704,93243.0,93242.0,0.30595859]
[1736522947961,0.0001704,93243.0,93242.0,0.51025835]
[1736522948173,0.000171,93264.0,93242.0,0.51025835]
[1736522948174,0.000171,93264.0,93250.0,0.05595859]
[1736522948383,0.000171,93264.0,93250.0,0.31133039]
[1736522948601,0.000171,93264.0,93250.0,0.31015839]
[1736522948815,0.000171,93264.0,93263.0,0.67110563]
[1736522948816,1e-06,93264.0,93263.0,0.67110563]
[1736522949025,0.000171,93292.0,93280.0,0.42026663]
[1736522949238,0.000171,93292.0,93280.0,0.10429976]
[1736522949477,0.00031688,93281.0,93280.0,0.15515839]
[1736522950093,0.00031688,93281.0,93273.0,0.05085863]
[1736522950302,0.00031688,93281.0,93277.0,0.05085863]
[1736522950530,0.00031688,93281.0,93280.0,0.004]
[1736522951552,0.00031688,93281.0,93280.0,0.15915839]
[1736522952314,0.00131688,93281.0,93280.0,0.16415839]
[1736522952660,0.21572188,93281.0,93280.0,0.009]
[1736522952912,0.214422,93274.0,93273.0,0.003]
[1736522953350,0.214417,93276.0,93265.0,0.05085863]
[1736522953558,0.00031688,93281.0,93266.0,0.10429976]
[1736522953754,0.00131688,93281.0,93280.0,0.004]
[1736522954204,0.00131688,93281.0,93256.0,0.214461]
[1736522954205,0.00031688,93281.0,93259.0,0.05085863]
[1736522954424,0.00031688,93281.0,93260.0,0.10429976]
[1736522954625,0.214435,93268.0,93260.0,0.10429976]
[1736522955100,0.00031688,93281.0,93273.0,0.05085863]
[1736522955297,0.00031688,93281.0,93280.0,0.30515839]
[1736522955506,0.00031688,93281.0,93280.0,0.60465839]
[1736522955719,0.000171,93292.0,93280.0,0.60465839]
[1736522955720,0.000171,93292.0,93291.0,0.30085863]
[1736522955931,0.00482909,93337.0,93291.0,0.30085863]
[1736522955932,0.00482909,93337.0,93301.0,0.15085863]
[1736522956136,0.00482909,93337.0,93301.0,0.61978878]
[1736522956348,0.00482909,93337.0,93301.0,0.41871739]
[1736522956753,0.00482909,93337.0,93301.0,0.51871739]
[1736522956958,0.0001704,93313.0,93301.0,0.79171739]
[1736522957184,0.0011708,93302.0,93301.0,0.77771739]
[1736522957389,0.0021708,93302.0,93301.0,0.78571739]
[1736522957593,0.0021708,93302.0,93301.0,0.81987113]
[1736522957800,0.0021708,93302.0,93301.0,0.69687113]
[1736522958092,0.0021708,93302.0,93301.0,0.79687113]
[1736522958318,0.0021708,93302.0,93301.0,0.80863113]
[1736522958511,0.0011708,93302.0,93301.0,0.79963113]
[1736522958718,0.0001708,93302.0,93301.0,0.57987113]
[1736522958920,0.0001708,93302.0,93301.0,0.58887113]
[1736522958921,0.0011708,93302.0,93301.0,0.58887113]
[1736522959125,0.0011708,93302.0,93301.0,0.58787113]
[1736522959328,0.0011708,93302.0,93301.0,0.81087113]
[1736522959537,0.0011708,93302.0,93301.0,0.81187113]
[1736522959948,0.0001704,93313.0,93312.0,0.26519263]
[1736522960150,0.00031683,93313.0,93312.0,0.36949239]
[1736522960358,0.00031683,93313.0,93312.0,0.46949239]
[1736522960532,0.00031683,93313.0,93312.0,0.54929239]
[1736522960694,0.00031683,93313.0,93312.0,0.79929239]
[1736522961091,8.3e-07,93313.0,93312.0,0.82229239]
[1736522961416,8.3e-07,93313.0,93312.0,0.83340271]
[1736522961618,8.3e-07,93313.0,93312.0,0.83135103]
[1736522961822,8.3e-07,93313.0,93312.0,0.84311103]
[1736522962232,8.3e-07,93313.0,93312.0,0.63135103]
[1736522962486,8.3e-07,93313.0,93312.0,0.61040271]
[1736522962748,8.3e-07,93313.0,93312.0,0.38060271]
[1736522962953,8.3e-07,93313.0,93312.0,0.16626871]
[1736522963160,8.3e-07,93313.0,93312.0,0.11648162]
[1736522963394,8.3e-07,93313.0,93312.0,0.16734025]
[1736522963609,8.3e-07,93313.0,93312.0,0.17634025]
[1736522963610,0.00100083,93313.0,93312.0,0.17634025]
[1736522963887,0.00100083,93313.0,93312.0,0.17434025]
[1736522964154,0.00200083,93313.0,93312.0,0.18334025]
[1736522964598,0.00100083,93313.0,93312.0,0.32434025]
[1736522964824,0.00200083,93313.0,93312.0,0.43226871]
[1736522965853,0.00100083,93313.0,93312.0,0.44826871]
[1736522966169,8.3e-07,93313.0,93312.0,0.54826871]
[1736522966377,0.00482909,93337.0,93325.0,0.42385863]
[1736522966378,4e-07,93326.0,93325.0,0.42385863]
[1736522966642,0.00048838,93326.0,93325.0,0.51946239]
[1736522966910,0.00048838,93326.0,93325.0,0.61946239]
[1736522967146,0.15,93384.0,93358.0,0.05085863]
[1736522967388,0.00014636,93364.0,93359.0,0.10429976]
[1736522967630,0.00014636,93364.0,93362.0,0.05085863]
[1736522967868,0.00014636,93364.0,93363.0,0.10429976]
[1736522969212,0.00014636,93364.0,93363.0,0.15622941]
[1736522969437,0.00014636,93364.0,93363.0,0.15515839]
[1736522970171,0.00014636,93364.0,93363.0,0.15615839]
[1736522970395,0.00014636,93364.0,93363.0,0.16015839]
[1736522970596,0.00014636,93364.0,93363.0,0.15515839]
[1736522970718,0.00114636,93364.0,93363.0,0.16415839]
[1736522970941,0.00114636,93364.0,93363.0,0.16715839]
[1736522971134,0.00014636,93364.0,93363.0,0.15815839]
[1736522971403,0.00014636,93364.0,93363.0,0.10729976]
[1736522971568,0.00014636,93364.0,93363.0,0.15815839]
[1736522971806,0.00114636,93364.0,93363.0,0.16715839]
[1736522972264,0.00114636,93364.0,93363.0,0.16415839]
[1736522972666,0.00114636,93364.0,93363.0,0.16715839]
[1736522972899,0.00014636,93364.0,93363.0,0.15922931]
[1736522973131,0.00114636,93364.0,93363.0,0.16522931]
[1736522973415,0.00014636,93364.0,93363.0,0.15922931]
[1736522973877,0.00114636,93364.0,93363.0,0.16522931]
[1736522974116,0.00014636,93364.0,93363.0,0.15622931]
[1736522974335,0.00114636,93364.0,93363.0,0.16922931]
[1736522974830,0.00114636,93364.0,93363.0,0.16815839]
[1736522975672,0.21536136,93364.0,93363.0,0.013]
[1736522975859,0.214217,93363.0,93351.0,0.05085863]
[1736522976067,0.00014636,93364.0,93363.0,0.004]
[1736522976277,0.00114636,93364.0,93363.0,0.11629976]
[1736522976517,0.00014636,93364.0,93363.0,0.10829976]
[1736522976680,0.00014636,93364.0,93363.0,0.10429976]
[1736522976878,0.00014636,93364.0,93363.0,0.10629976]
[1736522977124,0.00014636,93364.0,93363.0,0.15715839]
[1736522977345,0.00014636,93364.0,93363.0,0.002]
[1736522977769,0.00014636,93364.0,93323.0,0.01176]
[1736522977770,0.122,93346.0,93319.0,0.05085863]
[1736522977979,0.0758,93346.0,93332.0,0.05085863]
[1736522978187,0.214251,93349.0,93338.0,0.05085863]
[1736522978401,0.01176,93357.0,93341.0,0.05085863]
[1736522978608,0.0128301,93357.0,93342.0,0.10429976]
[1736522978809,0.0010701,93357.0,93342.0,0.10429976]
[1736522979017,0.214225,93360.0,93350.0,0.05085863]
[1736522979219,0.21436236,93364.0,93351.0,0.10429976]
[1736522979425,0.21436236,93364.0,93336.0,0.214278]
[1736522979426,0.21436236,93364.0,93363.0,0.003]
[1736522979664,0.214231,93358.0,93348.0,0.05085863]
[1736522979889,0.00014636,93364.0,93361.0,0.05085863]
[1736522980096,0.00014636,93364.0,93362.0,0.10429976]
[1736522980299,0.214219,93362.0,93353.0,0.05085863]
[1736522980546,0.00014636,93364.0,93358.0,0.05085863]
[1736522980756,0.00014636,93364.0,93348.0,0.214251]
[1736522980757,0.00014636,93364.0,93363.0,0.05085863]
[1736522980981,0.00014636,93364.0,93363.0,0.15515839]
[1736522981731,0.00014636,93364.0,93363.0,0.1562293]
[1736522981941,0.00014636,93364.0,93363.0,0.16740083]
[1736522982148,0.00014636,93364.0,93363.0,0.1562293]
[1736522982548,0.00014636,93364.0,93363.0,0.15515839]
[1736522982818,0.00014636,93364.0,93363.0,0.15622926]
[1736522982999,0.03379785,93390.0,93369.0,0.05085863]
[1736522983203,0.21418,93379.0,93370.0,0.10429976]
[1736522983477,0.21418,93379.0,93365.0,0.05085863]
[1736522983652,0.214185,93378.0,93366.0,0.10429976]
[1736522983788,0.214177,93381.0,93366.0,0.31850976]
[1736522984212,0.21418,93379.0,93366.0,0.36936839]
[1736522984428,0.364215,93364.0,93363.0,0.013]
[1736522984656,0.364215,93364.0,93363.0,0.009]
[1736522984873,0.214228,93359.0,93352.0,0.03032968]
[1736522985080,0.214215,93364.0,93353.0,0.10429976]
[1736522985300,0.214225,93360.0,93353.0,0.10429976]
[1736522985691,0.214235,93355.0,93353.0,0.10429976]
[1736522985954,0.02152678,93374.0,93353.0,0.10429976]
[1736522986161,0.214213,93365.0,93355.0,0.03032968]
[1736522986370,0.214196,93372.0,93356.0,0.10429976]
[1736522986581,0.214205,93369.0,93363.0,0.03032968]
[1736522986787,0.214196,93372.0,93364.0,0.10429976]
[1736522986995,0.02155682,93385.0,93364.0,0.10429976]
[1736522986996,0.214185,93378.0,93364.0,0.10429976]
[1736522987102,0.03379785,93390.0,93371.0,0.214199]
[1736522987313,0.03379785,93390.0,93356.0,0.214233]
[1736522987314,0.0010701,93389.0,93375.0,0.03032968]
[1736522987521,0.0010701,93388.0,93371.0,0.03032968]
[1736522987733,0.0463,93394.0,93375.0,0.03032968]
[1736522987734,0.214167,93385.0,93375.0,0.03032968]
[1736522987969,0.214167,93385.0,93371.0,0.03032968]
[1736522988170,0.002,93372.0,93362.0,0.03032968]
[1736522988372,0.002,93372.0,93369.0,0.03032968]
[1736522988574,0.002,93372.0,93371.0,0.03032968]
[1736522988849,0.002,93372.0,93371.0,0.13570034]
[1736522989696,0.001,93385.0,93384.0,0.03032968]
[1736522989906,0.001,93385.0,93371.0,0.10537066]
[1736522989907,0.214169,93384.0,93371.0,0.10429976]
[1736522990083,0.001,93385.0,93379.0,0.03032968]
[1736522990327,0.001,93385.0,93356.0,0.01115316]
[1736522990328,0.001,93385.0,93382.0,0.03032968]
[1736522990538,0.001,93385.0,93384.0,0.03032968]
[1736522990751,0.214141,93397.0,93384.0,0.13462944]
[1736522990926,0.00130158,93396.0,93384.0,0.10429976]
[1736522991144,0.214158,93389.0,93384.0,0.10429976]
[1736522991355,0.00023148,93396.0,93384.0,0.10429976]
[1736522991509,0.0010701,93395.0,93365.0,0.03032968]
[1736522991719,0.023,93393.0,93384.0,0.002]
[1736522991923,0.214167,93385.0,93384.0,0.002]
[1736522992131,0.60407589,93385.0,93384.0,0.002]
[1736522992366,0.214171,93383.0,93352.0,0.03032968]
[1736522992736,0.22327008,93385.0,93339.0,0.01108014]
[1736522992737,0.01172,93382.0,93360.0,0.03032968]
[1736522992935,0.01172,93382.0,93339.0,0.01108014]
[1736522992936,0.214186,93377.0,93361.0,0.10429976]
[1736522993141,0.1993,93385.0,93361.0,0.10429976]
[1736522993142,0.364167,93385.0,93371.0,0.214197]
[1736522993351,0.16117675,93385.0,93372.0,0.10429976]
[1736522993575,0.0240701,93384.0,93357.0,0.24455968]
[1736522993789,0.0240701,93384.0,93357.0,0.10429976]
[1736522993790,0.214216,93364.0,93357.0,0.10429976]
[1736522994005,0.214217,93363.0,93357.0,0.10429976]
[1736522994213,0.214205,93369.0,93357.0,0.10429976]
[1736522994602,0.214196,93372.0,93358.0,0.31852676]
[1736522994801,0.21417,93384.0,93367.0,0.214208]
[1736522995035,0.214186,93377.0,93368.0,0.10429976]
[1736522995208,0.214183,93379.0,93369.0,0.214203]
[1736522995411,0.002,93385.0,93370.0,0.10429976]
[1736522995565,0.214178,93381.0,93370.0,0.31850076]
[1736522995773,0.214155,93391.0,93371.0,0.214199]
[1736522995983,0.0010701,93390.0,93372.0,0.10429976]
[1736522996395,0.214167,93385.0,93372.0,0.10429976]
[1736522996595,0.214167,93385.0,93374.0,0.214192]
[1736522996936,0.214167,93385.0,93375.0,0.10429976]
[1736522997151,0.214161,93388.0,93376.0,0.214187]
[1736522997371,0.214166,93386.0,93377.0,0.31848476]
[1736522997594,0.214166,93386.0,93377.0,0.10429976]
[1736522997931,0.214166,93386.0,93377.0,0.31848276]
[1736522998126,0.0112917,93396.0,93377.0,0.31848276]
[1736522998127,0.00023148,93396.0,93377.0,0.13462944]
[1736522998338,0.21419,93375.0,93364.0,0.03032968]
[1736522998587,0.21419,93375.0,93365.0,0.10429976]
[1736522999002,0.214183,93379.0,93366.0,0.21421]
[1736522999209,0.214177,93381.0,93356.0,0.01129161]
[1736522999210,0.01161406,93396.0,93381.0,0.214174]
[1736522999377,0.214144,93395.0,93382.0,0.10429976]
[1736522999580,0.00023148,93396.0,93382.0,0.13462944]
[1736522999815,0.00023148,93396.0,93388.0,0.214159]
[1736523000010,0.00023148,93396.0,93389.0,0.10429976]
[1736523000464,0.21437448,93396.0,93389.0,0.10429976]
[1736523000594,0.21437448,93396.0,93370.0,0.30650144]
[1736523000595,0.15267032,93393.0,93350.0,0.03032968]
[1736523000801,0.15267032,93393.0,93351.0,0.13462944]
[1736523000802,0.06967032,93389.0,93351.0,0.13462944]
[1736523001030,0.214188,93376.0,93364.0,0.002]
[1736523001241,0.15,93387.0,93364.0,0.10629976]
[1736523001431,0.0010701,93386.0,93364.0,0.10429976]
[1736523001695,0.214207,93368.0,93364.0,0.10429976]
[1736523001904,0.428374,93376.0,93341.0,0.32468322]
[1736523002123,0.023,93362.0,93329.0,0.03032968]
[1736523002351,0.173,93359.0,93330.0,0.10429976]
[1736523002558,0.15,93365.0,93325.0,0.0001702]
[1736523002559,0.023,93342.0,93325.0,0.0001702]
[1736523002742,0.11887032,93345.0,93325.0,0.0001702]
[1736523002743,0.0010701,93341.0,93325.0,0.0001702]
[1736523002999,0.21427,93340.0,93326.0,0.10429976]
[1736523003200,0.21427,93340.0,93329.0,0.03032968]
[1736523003201,0.214271,93340.0,93329.0,0.03032968]
[1736523003411,0.03332985,93355.0,93329.0,0.10429976]
[1736523003412,0.214289,93332.0,93329.0,0.10429976]
[1736523003593,0.214289,93332.0,93325.0,0.0001702]
[1736523003857,0.428595,93328.0,93325.0,0.00031656]
[1736523004064,0.214297,93328.0,93325.0,0.00031656]
[1736523004282,0.214302,93326.0,93325.0,0.00031656]
[1736523004895,0.214302,93326.0,93325.0,0.00431656]
[1736523005100,0.237302,93326.0,93325.0,0.00431656]
[1736523005300,0.237302,93326.0,93325.0,0.00031656]
[1736523005518,0.53097763,93326.0,93325.0,0.00031656]
[1736523005726,0.448322,93326.0,93325.0,0.00031656]
[1736523005935,0.16172,93326.0,93325.0,0.00031656]
[1736523006138,0.01172,93326.0,93325.0,0.00031656]
[1736523006347,0.214274,93339.0,93325.0,0.10461632]
[1736523006558,0.01101835,93343.0,93326.0,0.10429976]
[1736523006760,0.0010701,93342.0,93326.0,0.10429976]
[1736523006957,0.214268,93341.0,93326.0,0.10429976]
[1736523007186,0.214278,93337.0,93326.0,0.10429976]
[1736523007596,0.214278,93337.0,93326.0,0.10129976]
[1736523007813,0.0010701,93336.0,93325.0,0.00231656]
[1736523008027,0.0214167,93348.0,93326.0,0.10429976]
[1736523008028,0.214283,93335.0,93326.0,0.10429976]
[1736523008239,0.15,93346.0,93325.0,0.00031656]
[1736523008457,0.214298,93328.0,93325.0,0.00031656]
[1736523008676,0.214302,93326.0,93325.0,0.00031656]
[1736523008902,0.364302,93326.0,93325.0,0.00031656]
[1736523009114,0.214291,93331.0,93325.0,0.00031656]
[1736523009325,0.214241,93353.0,93325.0,0.00031656]
[1736523009326,0.0010701,93330.0,93325.0,0.00031656]
[1736523009539,0.428593,93329.0,93325.0,0.00031656]
[1736523009756,0.2143,93327.0,93325.0,0.00031656]
[1736523009957,0.0010701,93326.0,93325.0,0.00031656]
[1736523010424,0.06967032,93351.0,93325.0,0.00031656]
[1736523010425,0.06967032,93371.0,93333.0,0.03032968]
[1736523010649,0.06967032,93371.0,93325.0,0.10461632]
[1736523010650,0.01092952,93339.0,93334.0,0.10429976]
[1736523010859,0.0010701,93347.0,93325.0,0.00031656]
[1736523011109,0.0010701,93347.0,93334.0,0.03032968]
[1736523011305,0.214252,93348.0,93335.0,0.10429976]
[1736523011524,0.214256,93346.0,93335.0,0.10429976]
[1736523011736,0.214256,93347.0,93336.0,0.214278]
[1736523011941,0.214285,93334.0,93325.0,0.00231656]
[1736523012140,0.01122584,93347.0,93325.0,0.10461632]
[1736523012351,0.0010701,93346.0,93325.0,0.10461632]
[1736523012563,0.0010701,93346.0,93326.0,0.13462944]
[1736523012767,0.214278,93337.0,93326.0,0.13462944]
[1736523012972,0.01112224,93348.0,93326.0,0.13462944]
[1736523013187,0.023,93351.0,93325.0,0.00031656]
[1736523013188,0.023,93343.0,93325.0,0.00031656]
[1736523013401,0.387302,93326.0,93325.0,0.00031656]
[1736523013648,0.364302,93326.0,93325.0,0.00031656]
[1736523014058,0.387302,93326.0,93325.0,0.00031656]
[1736523014266,0.56127208,93326.0,93325.0,0.00031656]
[1736523014489,0.66127208,93326.0,93325.0,0.00031656]
[1736523014706,0.51005178,93326.0,93325.0,0.00031656]
[1736523014944,0.37533178,93326.0,93325.0,0.00031656]
[1736523015153,0.37633178,93326.0,93325.0,0.00031656]
[1736523015594,0.214279,93337.0,93325.0,0.10461632]
[1736523015800,0.214279,93337.0,93326.0,0.10429976]
[1736523015999,0.214273,93339.0,93327.0,0.02832968]
[1736523016134,0.214283,93335.0,93328.0,0.10429976]
[1736523016350,0.02183582,93347.0,93325.0,0.00031656]
[1736523016351,0.2143,93328.0,93325.0,0.00031656]
[1736523016557,0.214302,93326.0,93325.0,0.00031656]
[1736523017186,0.364302,93326.0,93325.0,0.00031656]
[1736523017816,0.37548286,93326.0,93325.0,0.00031656]
[1736523018441,0.39948286,93326.0,93325.0,0.00031656]
[1736523018654,0.37648286,93326.0,93325.0,0.00031656]
[1736523019303,0.37548286,93326.0,93325.0,0.00031656]
[1736523019944,0.214281,93336.0,93325.0,0.00131656]
[1736523020149,0.01168,93349.0,93327.0,0.2143]
[1736523020376,0.01168,93349.0,93325.0,0.00031656]
[1736523020377,0.214299,93328.0,93325.0,0.00031656]
[1736523020590,0.1740701,93327.0,93325.0,0.00131656]
[1736523020795,0.237302,93326.0,93325.0,0.00031656]
[1736523021387,0.4708912,93326.0,93325.0,0.00031656]
[1736523021603,0.4708912,93326.0,93286.0,0.02832968]
[1736523021604,0.07167032,93320.0,93286.0,0.02832968]
[1736523021820,0.214356,93303.0,93290.0,0.02832968]
[1736523022026,0.0010701,93302.0,93287.0,0.02832968]
[1736523022231,0.0010701,93302.0,93286.0,0.00048798]
[1736523022454,0.21439,93288.0,93286.0,0.00048798]
[1736523022662,0.173,93287.0,93286.0,0.00048798]
[1736523022883,0.1510701,93287.0,93286.0,0.00048798]
[1736523023102,0.0010701,93287.0,93286.0,0.00048798]
[1736523023326,0.214374,93295.0,93286.0,0.00048798]
[1736523023327,0.214383,93291.0,93286.0,0.00048798]
[1736523023542,0.214369,93297.0,93287.0,0.10429976]
[1736523023798,0.02095065,93306.0,93286.0,0.00048798]
[1736523024006,0.0010701,93305.0,93286.0,0.10478774]
[1736523024208,0.214387,93290.0,93286.0,0.00048798]
[1736523024421,0.023,93287.0,93286.0,0.00048798]
[1736523024633,0.24079281,93287.0,93286.0,0.00048798]
[1736523024837,0.36601421,93287.0,93286.0,0.00048798]
[1736523025039,0.36601421,93287.0,93286.0,0.00248798]
[1736523025040,0.37688449,93287.0,93286.0,0.00248798]
[1736523025495,0.31016178,93287.0,93286.0,0.01148798]
[1736523025901,0.5626321,93287.0,93286.0,9.8e-07]
[1736523026121,0.387431,93270.0,93258.0,0.0001704]
[1736523026348,0.384911,93270.0,93258.0,0.0001704]
[1736523026554,0.56088108,93270.0,93269.0,0.00031643]
[1736523026772,0.76518084,93270.0,93269.0,0.00031643]
[1736523026979,0.361911,93270.0,93269.0,0.00031643]
[1736523027182,0.53788108,93270.0,93269.0,0.00031643]
[1736523027393,0.56088108,93270.0,93269.0,0.00031643]
[1736523027610,0.67168392,93270.0,93269.0,4.3e-07]
[1736523027827,0.173,93247.0,93240.0,0.0001704]
[1736523028050,0.07167032,93252.0,93240.0,0.00031688]
[1736523028051,0.214497,93241.0,93240.0,0.00031688]
[1736523028471,0.237497,93241.0,93240.0,0.00031688]
[1736523028681,0.23650193,93241.0,93240.0,0.00031688]
[1736523028935,0.40950193,93241.0,93240.0,0.00031688]
[1736523029139,0.4204065,93241.0,93240.0,0.00231688]
[1736523030305,0.3974065,93241.0,93240.0,0.00231688]
[1736523030520,0.08335032,93252.0,93240.0,0.00231688]
[1736523030521,0.07167032,93273.0,93240.0,0.00031688]
[1736523030742,0.214489,93245.0,93240.0,0.00031688]
[1736523030962,0.214493,93243.0,93240.0,0.00031688]
[1736523031353,0.428986,93243.0,93240.0,0.00031688]
[1736523031536,0.214484,93247.0,93240.0,0.00031688]
[1736523031940,0.214494,93243.0,93240.0,0.00031688]
[1736523032311,0.001,93243.0,93242.0,0.02832968]
[1736523032511,0.001,93243.0,93242.0,0.21270175]
[1736523032734,0.001,93243.0,93242.0,0.21162944]
[1736523033553,0.023,93280.0,93247.0,0.03890845]
[1736523033753,0.21446,93258.0,93247.0,0.14320821]
[1736523033952,0.214423,93274.0,93258.0,0.25336645]
[1736523034214,0.214423,93274.0,93263.0,0.03890845]
[1736523034215,0.0210986,93272.0,93263.0,0.03890845]
[1736523034425,0.0210986,93272.0,93263.0,0.14320821]
[1736523034832,0.214448,93263.0,93244.0,0.214489]
[1736523034963,0.214428,93271.0,93237.0,0.03890845]
[1736523034964,0.25,93271.0,93237.0,0.03890845]
[1736523035163,0.023,93264.0,93240.0,0.00031688]
[1736523035375,0.1,93267.0,93240.0,0.00031688]
[1736523035376,0.214492,93244.0,93240.0,0.00031688]
[1736523035583,0.214492,93244.0,93242.0,0.004]
[1736523036387,0.214492,93244.0,93240.0,0.00031688]
[1736523036388,0.173,93241.0,93240.0,0.00031688]
[1736523036637,0.023,93238.0,93232.0,0.0001704]
[1736523036836,0.387516,93233.0,93232.0,0.00031693]
[1736523037043,0.01133825,93244.0,93232.0,0.00031693]
[1736523037243,0.005,93264.0,93236.0,0.03890845]
[1736523037443,0.214493,93243.0,93236.0,0.03890845]
[1736523037724,0.214493,93243.0,93240.0,0.001]
[1736523037936,0.214493,93243.0,93236.0,0.03890845]
[1736523038355,0.214487,93246.0,93236.0,0.03890845]
[1736523038558,0.214475,93251.0,93236.0,0.03890845]
[1736523038559,0.214484,93247.0,93236.0,0.03890845]
[1736523038792,0.005,93244.0,93236.0,0.03890845]
[1736523038985,0.214502,93239.0,93236.0,0.03890845]
[1736523039300,0.214502,93239.0,93232.0,0.00031693]
[1736523039301,0.429014,93237.0,93232.0,0.00131693]
[1736523039515,0.214507,93237.0,93232.0,0.00131693]
[1736523039711,0.15,93242.0,93232.0,0.00031693]
[1736523039950,0.214516,93233.0,93232.0,0.00031693]
[1736523040465,0.364516,93233.0,93232.0,0.00031693]
[1736523040974,0.364516,93233.0,93186.0,0.294422]
[1736523040975,0.214586,93203.0,93186.0,0.294422]
[1736523041179,0.214579,93206.0,93196.0,0.03890845]
[1736523041398,0.214594,93199.0,93186.0,0.0798]
[1736523041634,0.387594,93199.0,93177.0,0.03890845]
[1736523041848,0.387594,93199.0,93169.0,0.0792704]
[1736523041849,0.214594,93199.0,93186.0,0.03890845]
[1736523042280,0.214594,93199.0,93198.0,0.00065946]
[1736523042492,0.22548191,93199.0,93198.0,0.00065946]
[1736523042710,0.01088791,93199.0,93198.0,0.00065946]
[1736523042946,0.22591138,93200.0,93198.0,0.00065946]
[1736523043163,0.023,93199.0,93198.0,0.00065946]
[1736523043377,0.001,93199.0,93198.0,0.00065946]
[1736523043597,0.001,93199.0,93198.0,0.00165946]
[1736523043808,0.214586,93203.0,93198.0,0.00065946]
[1736523044258,0.002,93199.0,93198.0,0.00065946]
[1736523044693,0.003,93199.0,93198.0,0.00065946]
[1736523044899,0.025,93199.0,93198.0,0.00065946]